bitfinex-derivatives/quotes_BNBF0:USTF0_20250509
["timestamp","ask_amount","ask_price","bid_price","bid_amount"]
[1746800593877,0.26542829,638.75,637.67,0.31364185]
[1746800594477,0.26542829,638.76,637.67,0.31364185]
[1746800595072,0.27273903,638.75,637.67,0.31364185]
[1746800595978,0.26542829,638.74,637.67,0.31364185]
[1746800597979,0.27277537,638.73,637.67,0.31364185]
[1746800598280,0.26509226,638.72,637.67,0.31364185]
[1746800599378,0.26509226,638.71,637.67,0.31364185]
[1746800599578,0.26509226,638.7,637.67,0.31364185]
[1746800599881,0.26509226,638.69,637.67,0.31364185]
[1746800600279,0.26509226,638.68,637.67,0.31364185]
[1746800600481,0.26509226,638.68,637.67,1.17664185]
[1746800600780,0.26509226,638.67,637.67,1.17664185]
[1746800600980,0.26509226,638.66,637.67,1.17664185]
[1746800601478,0.26509226,638.65,637.67,1.17664185]
[1746800601980,0.26509226,638.64,637.67,1.17664185]
[1746800602275,0.26509226,638.72,637.67,1.17664185]
[1746800602976,0.26509226,638.71,637.67,1.17664185]
[1746800603179,0.26509226,638.7,637.67,1.17664185]
[1746800603474,0.26509226,638.72,637.67,1.17664185]
[1746800603880,0.26509226,638.71,637.67,1.17664185]
[1746800604174,0.26509226,638.7,637.67,1.17664185]
[1746800604380,0.2728759,638.71,637.67,1.17664185]
[1746800604880,0.26507848,638.7,637.67,1.17664185]
[1746800605180,0.26507848,638.69,637.67,1.17664185]
[1746800605683,0.26507848,638.68,637.67,1.17664185]
[1746800605981,0.26507848,638.67,637.67,1.17664185]
[1746800606278,0.26507848,638.66,637.67,1.17664185]
[1746800606780,0.26507848,638.65,637.67,1.17664185]
[1746800606978,0.53800146,638.65,637.67,1.17664185]
[1746800607280,0.26507848,638.64,637.67,1.17664185]
[1746800607474,0.26507848,638.63,637.67,1.17664185]
[1746800607882,0.26507848,638.62,637.67,1.17664185]
[1746800608377,0.26507848,638.61,637.67,1.17664185]
[1746800608682,0.26507848,638.6,637.67,1.17664185]
[1746800608981,0.26507848,638.59,637.67,1.17664185]
[1746800609483,0.26507848,638.58,637.67,1.17664185]
[1746800609678,0.26507848,638.57,637.67,1.17664185]
[1746800609978,0.26507848,638.56,637.67,1.17664185]
[1746800610282,0.26507848,638.55,637.67,1.17664185]
[1746800610682,0.26507848,638.54,637.67,1.17664185]
[1746800610983,0.27292298,638.65,637.67,1.17664185]
[1746800610984,0.26507848,638.64,637.67,1.17664185]
[1746800611184,0.26507848,638.63,637.67,1.17664185]
[1746800611783,0.26507848,638.62,637.67,1.17664185]
[1746800612279,0.26507848,638.61,637.67,1.17664185]
[1746800612484,0.26507848,638.61,637.67,0.31364185]
[1746800612787,1.28907848,638.6,637.67,0.31364185]
[1746800612982,1.5619715,638.6,637.67,0.31364185]
[1746800613187,0.26507848,638.59,637.67,0.31364185]
[1746800613690,0.26507848,638.58,637.67,0.31364185]
[1746800613881,0.26507848,638.57,637.67,0.31364185]
[1746800614188,0.26507848,638.56,637.67,0.31364185]
[1746800614488,0.26507848,638.55,637.67,0.31364185]
[1746800614887,0.26507848,638.59,637.67,0.31364185]
[1746800615085,0.26507848,638.58,637.67,0.31364185]
[1746800615388,0.26507848,638.59,637.67,0.31364185]
[1746800615994,0.27291228,638.58,637.67,0.31364185]
[1746800616392,0.26507848,638.57,637.67,0.31364185]
[1746800617088,0.26507848,638.56,637.67,0.31364185]
[1746800617392,0.26507848,638.55,637.67,0.31364185]
[1746800617690,0.26507848,638.54,637.67,0.31364185]
[1746800617993,0.26507848,638.53,637.67,0.31364185]
[1746800618292,0.26507848,638.52,637.67,0.31364185]
[1746800618590,0.26507848,638.51,637.67,0.31364185]
[1746800618892,0.26507848,638.5,637.67,0.31364185]
[1746800619191,0.26507848,638.49,637.67,0.31364185]
[1746800619691,0.26507848,638.48,637.67,0.31364185]
[1746800620092,0.26507848,638.47,637.67,0.31364185]
[1746800620392,0.26507848,638.46,637.67,0.31364185]
[1746800620992,0.26507848,638.45,637.67,0.31364185]
[1746800621193,0.26507848,638.44,637.67,0.31364185]
[1746800621594,0.26507848,638.43,637.67,0.31364185]
[1746800621991,0.53805498,638.42,637.67,0.31364185]
[1746800622289,0.26507848,638.41,637.67,0.31364185]
[1746800622593,0.26507848,638.4,637.67,0.31364185]
[1746800622893,0.26507848,638.39,637.67,0.31364185]
[1746800623293,0.26507848,638.38,637.67,0.31364185]
[1746800623896,0.26507848,638.37,637.67,0.31364185]
[1746800624395,0.26507848,638.36,637.67,0.04062466]
[1746800624595,0.26507848,638.43,637.67,0.04062466]
[1746800624890,0.26507848,638.42,637.67,0.04062466]
[1746800625297,0.334,638.44,637.67,0.04062466]
[1746800625298,0.26507848,638.41,637.67,0.04062466]
[1746800625696,0.26507848,638.4,637.67,0.04062466]
[1746800626097,0.26507848,638.39,637.67,0.04062466]
[1746800626299,0.26507848,638.38,637.67,0.04062466]
[1746800626597,0.26507848,638.37,637.67,0.04062466]
[1746800626898,0.26507848,638.36,637.67,0.04062466]
[1746800627198,0.26507848,638.35,637.67,0.04062466]
[1746800627398,0.5381353,638.35,637.67,0.04062466]
[1746800627599,0.26507848,638.34,637.67,0.04062466]
[1746800627898,0.26507848,638.33,637.67,0.04062466]
[1746800628298,0.26507848,638.32,637.67,0.04062466]
[1746800628796,0.26507848,638.31,637.67,0.04062466]
[1746800629001,0.26507848,638.3,637.67,0.04062466]
[1746800629302,0.26507848,638.29,637.67,0.04062466]
[1746800629503,0.26507848,638.28,637.67,0.04062466]
[1746800629804,0.26507848,638.27,637.67,0.04062466]
[1746800630204,0.26507848,638.34,637.67,0.04062466]
[1746800630704,0.26507848,638.33,637.67,0.04062466]
[1746800631000,0.26507848,638.32,637.67,0.04062466]
[1746800631306,0.26507848,638.31,637.67,0.04062466]
[1746800632006,0.26507848,638.3,637.67,0.04062466]
[1746800632307,0.26507848,638.29,637.67,0.04062466]
[1746800632705,0.26507848,638.28,637.67,0.04062466]
[1746800633007,0.26507848,638.27,637.67,0.04062466]
[1746800633307,0.26507848,638.26,637.67,0.04062466]
[1746800633709,0.26507848,638.25,637.67,0.04062466]
[1746800634009,0.53837119,638.25,637.67,0.04062466]
[1746800634208,0.26507848,638.24,637.67,0.04062466]
[1746800634409,0.26507848,638.23,637.67,0.04062466]
[1746800634708,0.26507848,638.22,637.67,0.04062466]
[1746800635109,0.26507848,638.21,637.67,0.04062466]
[1746800635405,0.26507848,638.2,637.67,0.04062466]
[1746800635810,0.26507848,638.24,637.67,0.04062466]
[1746800639511,0.26507848,638.23,637.67,0.04062466]
[1746800640015,0.53812673,638.22,637.67,0.04062466]
[1746800640313,0.26507848,638.21,637.67,0.04062466]
[1746800640612,0.26507848,638.2,637.67,0.04062466]
[1746800641113,0.26507848,638.19,637.67,0.04062466]
[1746800641713,0.26507848,638.18,637.67,0.04062466]
[1746800642112,0.26507848,638.17,637.67,0.04062466]
[1746800642412,0.26507848,638.16,637.67,0.04062466]
[1746800642813,0.26507848,638.15,637.67,0.04062466]
[1746800643310,0.26507848,638.14,637.67,0.04062466]
[1746800643507,0.26507848,638.13,637.67,0.04062466]
[1746800643813,0.26507848,638.12,637.67,0.04062466]
[1746800644115,0.26507848,638.11,637.67,0.04062466]
[1746800644313,0.26507848,638.1,637.67,0.04062466]
[1746800644815,0.26507848,638.09,637.67,0.04062466]
[1746800645208,0.26507848,638.08,637.67,0.04062466]
[1746800645615,0.26507848,638.16,637.67,0.04062466]
[1746800645813,2.03334999,638.17,637.25,0.56547247]
[1746800646111,0.26460326,638.16,637.25,0.56547247]
[1746800646414,0.26460326,638.15,637.25,0.56547247]
[1746800646714,0.26460326,638.14,637.25,0.56547247]
[1746800647215,0.26460326,638.13,637.25,0.56547247]
[1746800647613,0.26460326,638.12,637.25,0.56547247]
[1746800648017,0.26460326,638.11,637.25,0.56547247]
[1746800648516,0.26460326,638.1,637.25,0.56547247]
[1746800648717,0.5377576,638.1,637.25,0.56547247]
[1746800648918,0.26460326,638.09,637.25,0.56547247]
[1746800649117,0.26460326,638.09,637.25,0.29230312]
[1746800649317,2.03334999,638.02,637.25,0.29230312]
[1746800649718,0.26460326,638.01,637.25,0.29230312]
[1746800650018,0.26460326,638.0,637.25,0.29230312]
[1746800650319,0.26460326,637.99,637.25,0.29230312]
[1746800650615,0.26460326,637.98,637.25,0.29230312]
[1746800650919,0.26460326,637.97,637.25,0.29230312]
[1746800651221,0.26460326,637.96,637.25,0.29230312]
[1746800651819,0.98760326,637.95,637.25,0.29230312]
[1746800652215,0.26460326,637.94,637.25,0.29230312]
[1746800653722,0.26460326,637.93,637.25,0.29230312]
[1746800654222,0.26460326,637.92,637.25,0.29230312]
[1746800654523,0.26460326,637.91,637.25,0.29230312]
[1746800654823,0.26460326,637.9,637.25,0.29230312]
[1746800655319,2.03334999,637.73,637.25,0.29230312]
[1746800655524,0.26460326,637.72,637.25,0.29230312]
[1746800655724,0.26460326,637.72,636.63,0.823]
[1746800656024,0.26460326,637.71,636.63,0.823]
[1746800656225,2.03334999,637.73,636.63,0.823]
[1746800656828,0.26528188,637.72,636.63,0.823]
[1746800657227,2.03334999,637.61,636.63,0.823]
[1746800657727,0.26528188,637.6,636.63,0.823]
[1746800658020,0.26528188,637.59,636.63,0.823]
[1746800660029,0.27326588,637.6,636.63,0.823]
[1746800660430,0.26501618,637.59,636.63,0.823]
[1746800661030,0.2732337,637.58,636.63,0.823]
[1746800661329,0.26501618,637.57,636.63,0.823]
[1746800663129,0.59801618,637.57,636.63,0.823]
[1746800663630,0.26501618,637.56,636.63,0.823]
[1746800663831,0.333,637.57,636.63,0.823]
[1746800664332,0.26505929,637.56,636.63,0.823]
[1746800664925,0.2732573,637.55,636.63,0.823]
[1746800665231,0.26505929,637.54,636.63,0.823]
[1746800668839,0.2732573,637.55,636.63,0.823]
[1746800672834,0.333,637.57,636.63,0.823]
[1746800673237,0.26506221,637.56,636.63,0.823]
[1746800674238,0.333,637.57,636.63,0.823]
[1746800674239,0.53827446,637.55,636.63,0.823]
[1746800674539,0.26506221,637.54,636.63,0.823]
[1746800675138,0.26506221,637.53,636.63,0.823]
[1746800675438,0.26506221,637.54,636.63,0.823]
[1746800676438,0.27321225,637.55,636.63,0.823]
[1746800676841,0.26497844,637.54,636.63,0.823]
[1746800679038,0.27316614,637.53,636.63,0.823]
[1746800679540,0.26497844,637.52,636.63,0.823]
[1746800679834,0.27316614,637.53,636.63,0.823]
[1746800680140,0.26504617,637.52,636.63,0.823]
[1746800680342,1.00104617,637.52,636.63,0.823]
[1746800680641,0.26504617,637.51,636.63,0.823]
[1746800684642,0.26504617,637.51,636.13,0.27316614]
[1746800688141,0.26504617,637.51,636.14,0.669]
[1746800688739,0.333,637.5,636.14,0.669]
[1746800688940,0.26504617,637.49,636.14,0.669]
[1746800691142,0.27324013,637.48,636.14,0.669]
[1746800691345,0.26504617,637.47,636.14,0.669]
[1746800693346,0.26504617,637.47,636.15,0.672]
[1746800694146,0.27326159,637.46,636.15,0.672]
[1746800694646,0.26504617,637.45,636.15,0.672]
[1746800697251,0.27327125,637.44,636.15,0.672]
[1746800697547,0.26504617,637.43,636.15,0.672]
[1746800697850,0.27327125,637.44,636.15,0.672]
[1746800698252,0.26473926,637.43,636.15,0.672]
[1746800702959,0.26473926,637.49,636.15,0.672]
[1746800703152,0.27335389,637.42,636.15,0.672]
[1746800703351,0.26473926,637.41,636.15,0.672]
[1746800704059,0.26473926,637.4,636.15,0.672]
[1746800704354,0.26473926,637.41,636.15,0.672]
[1746800704960,0.26473926,637.4,636.15,0.672]
[1746800705153,0.26473926,637.39,636.15,0.672]
[1746800705555,0.26473926,637.38,636.15,0.672]
[1746800705957,0.27335389,637.42,636.15,0.672]
[1746800706156,0.26457056,637.41,636.15,0.672]
[1746800706561,0.26457056,637.4,636.15,0.672]
[1746800706959,0.26457056,637.41,636.15,0.672]
[1746800707155,0.26457056,637.39,636.15,0.672]
[1746800707359,0.27335389,637.42,636.15,0.672]
[1746800707360,0.26457056,637.4,636.15,0.672]
[1746800707563,0.27335389,637.42,636.15,0.672]
[1746800707564,0.26457056,637.38,636.15,0.672]
[1746800707855,0.26457056,637.37,636.15,0.672]
[1746800708159,0.26457056,637.36,636.15,0.672]
[1746800708355,0.26457056,637.35,636.15,0.672]
[1746800708553,0.26457056,637.34,636.15,0.672]
[1746800708758,0.26457056,637.33,636.15,0.672]
[1746800709061,0.26457056,637.32,636.15,0.672]
[1746800709261,0.26457056,637.31,636.15,0.672]
[1746800709458,0.26457056,637.3,636.15,0.672]
[1746800709656,0.26457056,637.29,636.15,0.672]
[1746800709861,0.26457056,637.28,636.15,0.672]
[1746800710061,0.26457056,637.27,636.15,0.672]
[1746800710560,0.26457056,637.26,636.15,0.672]
[1746800710761,0.26457056,637.25,636.15,0.672]
[1746800710962,0.26457056,637.24,636.15,0.672]
[1746800711263,0.84357056,637.23,636.15,0.672]
[1746800711462,0.26457056,637.22,636.15,0.672]
[1746800711662,0.26457056,637.21,636.15,0.672]
[1746800711962,0.26457056,637.2,636.15,0.672]
[1746800712263,0.26457056,637.19,636.15,0.672]
[1746800712458,0.26457056,637.18,636.15,0.672]
[1746800712664,0.26457056,637.17,636.15,0.672]
[1746800712963,0.26457056,637.16,636.15,0.672]
[1746800713158,0.26457056,637.15,636.15,0.672]
[1746800713362,0.26457056,637.14,636.15,0.672]
[1746800713665,0.27354405,637.17,636.15,0.672]
[1746800713962,0.26451431,637.16,636.15,0.672]
[1746800715360,0.26451431,637.15,636.15,0.672]
[1746800715665,0.26451431,637.14,636.15,0.672]
[1746800715959,0.26451431,637.13,636.15,0.672]
[1746800716262,0.26451431,637.12,636.15,0.672]
[1746800716464,0.26451431,637.11,636.15,0.672]
[1746800716764,0.26451431,637.1,636.15,0.672]
[1746800716965,0.26451431,637.09,636.15,0.672]
[1746800717162,0.26451431,637.08,636.15,0.672]
[1746800717366,0.26451431,637.07,636.15,0.672]
[1746800717563,0.332,637.13,636.15,0.672]
[1746800717564,0.26451431,637.06,636.15,0.672]
[1746800717762,0.26451431,637.05,636.15,0.672]
[1746800717960,0.26451431,637.12,636.15,0.672]
[1746800719065,0.27344947,637.11,636.15,0.672]
[1746800719465,0.53796378,637.11,636.15,0.672]
[1746800719965,0.26451431,637.1,636.15,0.672]
[1746800720566,0.26451431,637.09,636.15,0.672]
[1746800720860,0.26451431,637.1,636.15,0.672]
[1746800721162,0.26451431,637.09,636.15,0.672]
[1746800721464,0.26451431,637.1,636.15,0.672]
[1746800724665,0.26451431,637.1,636.17,0.31438137]
[1746800727365,0.26451431,637.09,636.17,0.31438137]
[1746800727665,0.26451431,637.08,636.17,0.31438137]
[1746800728065,0.26451431,637.07,636.17,0.31438137]
[1746800728266,0.26451431,637.06,636.17,0.31438137]
[1746800729069,0.26451431,637.1,636.17,0.31438137]
[1746800729662,0.27344947,637.11,636.17,0.31438137]
[1746800729864,0.26521139,637.1,636.17,0.31438137]
[1746800730061,0.27336462,637.09,636.17,0.31438137]
[1746800730461,0.26521139,637.08,636.17,0.31438137]
[1746800731969,0.26521139,637.08,636.17,0.80138137]
[1746800733166,0.27339254,637.07,636.17,0.80138137]
[1746800733564,0.26521139,637.06,636.17,0.80138137]
[1746800733960,0.331,637.05,636.17,0.80138137]
[1746800734367,0.26521139,637.04,636.17,0.80138137]
[1746800735871,0.26521139,637.04,636.17,1.35438137]
[1746800736065,0.27343336,637.03,636.17,1.35438137]
[1746800736465,0.26521139,637.02,636.17,1.35438137]
[1746800739475,0.46,637.01,636.17,1.35438137]
[1746800739874,0.26521139,637.0,636.17,1.35438137]
[1746800742075,0.27346129,636.99,636.17,1.35438137]
[1746800742476,0.26521139,636.98,636.17,1.35438137]
[1746800743883,0.26521139,636.97,636.17,1.35438137]
[1746800744579,0.26521139,636.96,636.17,1.35438137]
[1746800744979,0.26521139,636.95,636.17,1.35438137]
[1746800745478,0.26521139,636.94,636.17,1.35438137]
[1746800745980,0.26521139,636.98,636.17,1.35438137]
[1746800746279,0.26521139,636.97,636.17,1.35438137]
[1746800746681,0.26521139,636.96,636.17,1.35438137]
[1746800746981,0.27346129,636.99,636.17,1.35438137]
[1746800747177,0.26542236,636.98,636.17,1.35438137]
[1746800747680,0.26542236,636.97,636.17,1.35438137]
[1746800748182,0.26542236,636.96,636.17,1.35438137]
[1746800748582,0.26542236,636.95,636.17,1.35438137]
[1746800748784,0.59642236,636.95,636.17,1.35438137]
[1746800748982,0.26542236,636.94,636.17,1.35438137]
[1746800749977,0.331,636.95,636.17,1.35438137]
[1746800750183,0.26528427,636.94,636.17,1.35438137]
[1746800751178,0.27348923,636.93,636.17,1.35438137]
[1746800751579,0.26528427,636.92,636.17,1.35438137]
[1746800753079,0.27348923,636.93,636.17,1.35438137]
[1746800753382,0.26526329,636.92,636.17,1.35438137]
[1746800756177,0.27348923,636.93,636.17,1.35438137]
[1746800756380,0.26532367,636.92,636.17,1.35438137]
[1746800757086,0.27346559,636.91,636.17,1.35438137]
[1746800757482,0.26532367,636.9,636.17,1.35438137]
[1746800759887,0.27346559,636.91,636.17,1.35438137]
[1746800760079,0.26555943,636.9,636.17,1.35438137]
[1746800764088,0.26555943,636.89,636.17,1.35438137]
[1746800764290,0.26555943,636.89,636.17,0.86738137]
[1746800764492,0.26555943,636.88,636.17,0.86738137]
[1746800765084,0.26555943,636.9,636.17,0.86738137]
[1746800766190,0.80547418,636.89,636.17,0.86738137]
[1746800766889,0.26549566,636.88,636.17,0.86738137]
[1746800769091,0.27355802,636.87,636.17,0.86738137]
[1746800769290,0.53905368,636.87,636.17,0.86738137]
[1746800769492,0.26549566,636.86,636.17,0.86738137]
[1746800769786,0.27355802,636.87,636.17,0.86738137]
[1746800769787,0.26549566,636.85,636.17,0.86738137]
[1746800770092,0.26549566,636.84,636.17,0.86738137]
[1746800770287,0.26549566,636.83,636.17,0.86738137]
[1746800770687,0.26549566,636.82,636.17,0.86738137]
[1746800770892,0.26549566,636.81,636.17,0.86738137]
[1746800771291,0.26549566,636.8,636.17,0.86738137]
[1746800771587,0.26549566,636.79,636.17,0.86738137]
[1746800771992,0.532,636.89,636.17,0.86738137]
[1746800771993,0.53908917,636.78,636.17,0.86738137]
[1746800772193,0.26549566,636.77,636.17,0.86738137]
[1746800772489,0.26549566,636.76,636.17,0.86738137]
[1746800772792,0.26549566,636.75,636.17,0.86738137]
[1746800772993,0.26549566,636.74,636.17,0.86738137]
[1746800773396,0.26549566,636.73,636.17,0.86738137]
[1746800773796,0.26549566,636.72,636.17,0.86738137]
[1746800774396,0.26549566,636.71,636.17,0.86738137]
[1746800774692,0.26549566,636.7,636.17,0.86738137]
[1746800774997,0.26549566,636.69,636.17,0.86738137]
[1746800775398,0.26549566,636.68,636.17,0.86738137]
[1746800775991,0.26549566,636.67,636.17,0.86738137]
[1746800776396,0.26549566,636.66,636.17,0.86738137]
[1746800776798,0.26549566,636.65,636.17,0.86738137]
[1746800776998,0.26549566,636.65,636.17,0.31438137]
[1746800777199,0.26549566,636.64,636.17,0.31438137]
[1746800777898,0.26549566,636.63,636.17,0.31438137]
[1746800778398,0.26549566,636.62,636.17,0.31438137]
[1746800778697,0.26549566,636.61,636.17,0.31438137]
[1746800779093,0.26549566,636.6,636.17,0.31438137]
[1746800779398,0.26549566,636.59,636.17,0.31438137]
[1746800779598,0.26549566,636.58,636.17,0.31438137]
[1746800779900,0.60359351,636.78,636.17,0.31438137]
[1746800780300,0.26486573,636.77,636.17,0.31438137]
[1746800780503,0.26486573,636.76,636.03,0.543]
[1746800780801,0.26486573,636.75,636.03,0.543]
[1746800780998,0.53863465,636.75,636.03,0.543]
[1746800781301,0.26486573,636.74,636.03,0.543]
[1746800781697,0.26486573,636.73,636.03,0.543]
[1746800782204,2.29821572,636.73,636.03,0.543]
[1746800782502,0.26486573,636.72,636.03,0.543]
[1746800782802,0.26486573,636.71,636.03,0.543]
[1746800783202,0.26486573,636.7,636.03,0.543]
[1746800783501,0.26486573,636.69,636.03,0.543]
[1746800783696,0.26486573,636.68,636.03,0.543]
[1746800784001,0.26486573,636.67,636.03,0.543]
[1746800784501,0.26486573,636.66,636.03,0.543]
[1746800785103,0.26486573,636.65,636.03,0.543]
[1746800785402,0.26486573,636.64,636.03,0.543]
[1746800785702,0.26486573,636.63,636.03,0.543]
[1746800786002,0.26486573,636.62,636.03,0.543]
[1746800786501,0.26486573,636.61,636.03,0.543]
[1746800786803,0.26486573,636.6,636.03,0.543]
[1746800787103,0.26486573,636.59,636.03,0.543]
[1746800787403,0.26486573,636.58,636.03,0.543]
[1746800787699,0.26486573,636.57,636.03,0.543]
[1746800788105,0.26486573,636.56,636.03,0.543]
[1746800788405,0.26486573,636.55,636.03,0.543]
[1746800788704,0.26486573,636.54,636.03,0.543]
[1746800789006,0.26486573,636.53,636.03,0.543]
[1746800789501,0.26486573,636.52,636.03,0.543]
[1746800789705,0.26486573,636.51,636.03,0.543]
[1746800790507,0.26486573,636.5,636.03,0.543]
[1746800790905,0.33,636.64,636.03,0.543]
[1746800791101,0.26473434,636.63,636.03,0.543]
[1746800791305,0.53848711,636.63,636.03,0.543]
[1746800791505,0.26473434,636.62,636.03,0.543]
[1746800791706,0.27375277,636.63,636.03,0.543]
[1746800791907,0.26473065,636.62,636.03,0.543]
[1746800792205,0.26473065,636.61,636.03,0.543]
[1746800792709,0.26473065,636.6,636.03,0.543]
[1746800793010,0.26473065,636.59,636.03,0.543]
[1746800793312,0.26473065,636.58,636.03,0.543]
[1746800793606,0.26473065,636.62,636.03,0.543]
[1746800793911,0.26473065,636.61,636.03,0.543]
[1746800795519,0.27375277,636.63,636.03,0.543]
[1746800795520,0.26473065,636.62,636.03,0.543]
[1746800796013,0.26473065,636.61,636.03,0.543]
[1746800796419,0.26473065,636.6,636.03,0.543]
[1746800796822,0.26473065,636.62,636.03,0.543]
[1746800797720,0.27375277,636.63,636.03,0.543]
[1746800798221,0.2644947,636.62,636.03,0.543]
[1746800800021,0.27375277,636.63,636.03,0.543]
[1746800800322,0.26443802,636.62,636.03,0.543]
[1746800800822,0.26443802,636.61,636.03,0.543]
[1746800801020,0.26443802,636.6,636.03,0.543]
[1746800801322,0.26443802,636.59,636.03,0.543]
[1746800801821,0.27375277,636.63,636.03,0.543]
[1746800801822,0.26443802,636.58,636.03,0.543]
[1746800802323,0.26443802,636.57,636.03,0.543]
[1746800802526,0.26443802,636.56,636.03,0.543]
[1746800802923,0.26443802,636.55,636.03,0.543]
[1746800803119,0.53820048,636.55,636.03,0.543]
[1746800803324,0.26443802,636.54,636.03,0.543]
[1746800803521,2.03334999,636.37,636.03,0.543]
[1746800803825,0.26443802,636.36,636.03,0.543]
[1746800804024,0.26443802,636.35,636.03,0.543]
[1746800804422,0.26443802,636.34,636.03,0.543]
[1746800804726,0.26443802,636.33,636.03,0.543]
[1746800805219,0.53824033,636.32,636.03,0.543]
[1746800805624,0.27380231,636.32,636.03,0.543]
[1746800805825,0.26424081,636.31,636.03,0.543]
[1746800806126,0.26424081,636.3,636.03,0.543]
[1746800806421,0.26424081,636.29,636.03,0.543]
[1746800806726,0.26424081,636.28,636.03,0.543]
[1746800807025,0.26424081,636.27,636.03,0.543]
[1746800807429,0.26424081,636.26,636.03,0.543]
[1746800807823,0.26424081,636.25,636.03,0.543]
[1746800808128,0.26424081,636.31,636.03,0.543]
[1746800811133,0.27377862,636.3,636.03,0.543]
[1746800811832,0.26424081,636.29,636.03,0.543]
[1746800813736,0.26424081,636.28,636.03,0.543]
[1746800814034,0.27371725,636.28,636.03,0.543]
[1746800814334,0.26424081,636.27,636.03,0.543]
[1746800815538,0.27371725,636.28,636.03,0.543]
[1746800815931,0.26415199,636.27,636.03,0.543]
[1746800817233,0.27376246,636.26,636.03,0.543]
[1746800817734,0.26415199,636.25,636.03,0.543]
[1746800819429,0.27376246,636.26,636.03,0.543]
[1746800819734,0.2641192,636.25,636.03,0.543]
[1746800820030,0.2641192,636.24,636.03,0.543]
[1746800820230,0.2641192,636.23,636.03,0.543]
[1746800820629,0.2641192,636.23,635.65,0.634]
[1746800821134,0.2641192,636.22,635.65,0.634]
[1746800821429,0.2641192,636.21,635.65,0.634]
[1746800821735,0.2641192,636.2,635.65,0.634]
[1746800821935,2.03334999,635.9,635.65,0.634]
[1746800822333,0.2641192,635.89,635.65,0.634]
[1746800822635,0.2641192,635.88,635.65,0.634]
[1746800822835,0.2641192,635.89,635.65,0.634]
[1746800824233,0.2641192,635.91,635.65,0.634]
[1746800824434,2.03334999,635.92,635.65,0.634]
[1746800824435,0.2641192,635.9,635.65,0.634]
[1746800824741,0.2641192,635.91,635.65,0.634]
[1746800824939,0.2641192,635.9,635.65,0.634]
[1746800825338,0.2641192,635.91,635.65,0.634]
[1746800826040,0.2641192,635.91,635.65,0.36007161]
[1746800826335,0.2641192,635.91,635.08,0.684]
[1746800826336,0.2641192,635.9,635.08,0.684]
[1746800826739,0.2641192,636.07,635.08,0.684]
[1746800827141,0.2641192,636.06,635.08,0.684]
[1746800827341,0.2641192,636.07,635.08,0.684]
[1746800828342,0.2641192,636.06,635.08,0.684]
[1746800828542,0.2641192,636.25,635.08,0.684]
[1746800828942,0.2641192,636.24,635.09,0.31491599]
[1746800829142,0.53802388,636.24,635.09,0.31491599]
[1746800829336,0.2641192,636.23,635.09,0.31491599]
[1746800829642,0.2641192,636.22,635.09,0.31491599]
[1746800829839,0.2641192,636.21,635.09,0.31491599]
[1746800830240,0.2641192,636.2,635.09,0.31491599]
[1746800830439,0.2641192,636.19,635.09,0.31491599]
[1746800830739,0.2641192,636.18,635.09,0.31491599]
[1746800831041,0.2641192,636.17,635.09,0.31491599]
[1746800831345,0.2641192,636.16,635.09,0.31491599]
[1746800831745,0.2641192,636.15,635.09,0.31491599]
[1746800832240,0.2641192,636.14,635.09,0.31491599]
[1746800832445,0.2641192,636.13,635.09,0.31491599]
[1746800832645,0.2641192,636.12,635.09,0.31491599]
[1746800833046,0.2641192,636.11,635.09,0.31491599]
[1746800833346,0.2641192,636.1,635.09,0.31491599]
[1746800833646,0.27390683,636.15,635.09,0.31491599]
[1746800834047,0.26361637,636.14,635.09,0.31491599]
[1746800834441,0.26361637,636.13,635.09,0.31491599]
[1746800834949,0.26361637,636.12,635.09,0.31491599]
[1746800835248,0.26361637,636.11,635.09,0.31491599]
[1746800838846,0.769,636.1,635.09,0.31491599]
[1746800839348,0.26361637,636.09,635.09,0.31491599]
[1746800841153,0.53752536,636.08,635.09,0.31491599]
[1746800841555,0.26361637,636.07,635.09,0.31491599]
[1746800841854,0.26361637,636.06,635.09,0.31491599]
[1746800842154,0.26361637,636.05,635.09,0.31491599]
[1746800842549,0.26361637,636.04,635.09,0.31491599]
[1746800842854,0.26361637,636.03,635.09,0.31491599]
[1746800843153,0.26361637,636.02,635.09,0.31491599]
[1746800843554,0.26361637,636.01,635.09,0.31491599]
[1746800844053,0.53754692,636.0,635.09,0.31491599]
[1746800844454,0.26361637,635.99,635.09,0.31491599]